Cogmind - Beta 15 @@@ ROGUE MODE // 2025.05.17 @ 15:57:13 Player: Demo Result: Destroyed by FB-8V9(R) with Subdweller Machine Gun Performance ------------- Evolutions (0) 0 Regions Visited (3) 600 Robots Destroyed (30) 150 Value Destroyed (564) 564 Prototype IDs (0) 0 Alien Tech Used (0) 0 Bonus (0) 0 TOTAL SCORE: 1314 Bonus ------- None Cogmind --------- Core Integrity 0/250 Matter 299/300 Energy 315/315 System Corruption 0% Temperature Cool (6) Movement Rolling (120) Ox2 Location -10/Subcaves Parts ------- > --- POWER (1) -------- Neutrino Core > --- PROPULSION (2) --- Armored Wheel Armored Wheel > --- UTILITY (2) ------ High-capacity Storage Unit Medium Armor Plating > --- WEAPON (2) ------- Small Laser Battle Rifle > --- INVENTORY (20) --- Wheel Wheel Armored Wheel Armored Wheel Subdweller Monowheel Large Matter Pod (150) Seismic Detector Improved Targeting Computer Improved Targeting Computer Medium Armor Plating Medium Armor Plating Medium Armor Plating Heavy Armor Plating Scrap Shield Particle Gun Light Assault Rifle Battle Cannon Great Maul Peak State ------------ > --- POWER ------------ Neutrino Core > --- PROPULSION ------- Myomer Leg Wheel > --- UTILITY ---------- High-capacity Storage Unit Medium Armor Plating > --- WEAPON ----------- Small Laser Battle Rifle > --- INVENTORY -------- Wheel Armored Wheel Armored Wheel Armored Wheel Armored Wheel Large Matter Pod Seismic Detector Improved Targeting Computer Improved Targeting Computer Medium Armor Plating Medium Armor Plating Medium Armor Plating Heavy Armor Plating Scrap Shield Particle Gun Battle Cannon Great Maul [Rating: 23] Favorites ----------- Power Light Ion Engine Engine Light Ion Engine Power Core Light Nuclear Core Propulsion Wheel Treads Light Treads Leg Myomer Leg Wheel Wheel Utility High-capacity Storage Unit Device Structural Scanner Storage High-capacity Storage Unit Protection Medium Armor Plating Weapon Beam Cannon Energy Gun Small Laser Energy Cannon Beam Cannon Ballistic Gun Light Assault Rifle Build | -11 -10 -10 -10 ------- Run | Yrd Mat Min Sub Slots Evolved . | . . . . Power . | . . . . Propulsion . | . . . . Utility . | . . . . Weapon . | . . . . Parts Attached 28 | 6 9 2 11 Power 3 | . 1 1 1 Engine 1 | . . 1 . Core 2 | . 1 . 1 Reactor . | . . . . Propulsion 12 | 2 4 . 6 Treads 3 | 1 2 . . Leg 1 | . . . 1 Wheel 8 | 1 2 . 5 Hover . | . . . . Flight . | . . . . Utility 6 | 2 2 . 2 Device 2 | 1 1 . . Storage 2 | 1 1 . . Processor . | . . . . Hackware . | . . . . Protection 2 | . . . 2 Artifact . | . . . . Weapon 7 | 2 2 1 2 Energy Gun 4 | 2 1 . 1 Energy Cannon 1 | . 1 . . Ballistic Gun 2 | . . 1 1 Ballistic Cannon . | . . . . Launcher . | . . . . Special Weapon . | . . . . Impact Weapon . | . . . . Slashing Weapon . | . . . . Piercing Weapon . | . . . . Special Melee Weapon . | . . . . Unidentified Prototypes . | . . . . Parts Lost 2 | . 1 . 1 Power 1 | . 1 . . Propulsion . | . . . . Utility . | . . . . Weapon 1 | . . . 1 Highest Loss Streak 1 | . 1 . 1 To Critical Strikes . | . . . . Average Backups 16 | 2 14 19 18 Power . | . . . . Propulsion 7 | 2 8 7 5 Utility 6 | . 3 9 8 Weapon 2 | . 2 2 3 Tool/Special . | . . . . Unused Backups 24 | . 8 3 13 Power . | . . . . Propulsion 8 | . 4 2 2 Utility 11 | . 3 1 7 Weapon 3 | . . . 3 Tool/Special 2 | . 1 . 1 Average Slot Usage (%) 94 | . 89 98 97 Engine 6 | . . 12 3 Core 2 | . 3 . 10 Treads 12 | . 14 14 4 Wheel 14 | . 13 14 20 Device 12 | . 14 14 1 Storage 14 | . 14 14 14 Protection 1 | . . . 12 Energy Gun 7 | . 14 1 10 Energy Cannon 12 | . 13 14 3 Ballistic Gun 7 | . . 12 14 Peak Build Rating 23 | 6 10 10 23 Average Rating 9 | 4 8 9 16 On Entrance 6 | . 6 9 10 Naked Turns . | . . . . Heaviest Build 64 | 9 50 48 64 Greatest Support 32 | 20 10 10 32 Greatest Overweight (x) 6 | . 4 4 6 Average Overweight (x) 3 | . 3 4 2 Largest Inventory Capacity 20 | 8 20 20 20 Average Capacity 18 | 7 18 20 20 Most Carried 20 | 8 20 20 20 Average Carried 16 | 2 14 19 19 Final Capacity 20 | 8 20 20 20 Final Carried 20 | 8 20 20 20 Class Distribution -------------------- 61% | Scavenger-Mutant 38% | Mutant Dominant Class ---------------- Mutant | -10/Materials Scavenger-Mutant | -10/Mines Scavenger-Mutant | -10/Subcaves Resources | -11 -10 -10 -10 ----------- Run | Yrd Mat Min Sub Matter Collected 677 | 260 224 52 141 Remotely . | . . . . Salvage Created 1022 | 220 434 149 219 Parts 72 | 16 20 17 19 Haulers Intercepted . | . . . . Recyclers Shooed 1 | . . 1 . Parts Field Recycled . | . . . . Retrieved Matter . | . . . . Parts Self-Destructed 12 | . . . 12 Prevented . | . . . . Kills | -11 -10 -10 -10 ------- Run | Yrd Mat Min Sub Combat Hostiles Destroyed 17 | . 7 3 7 Guns 9 | . 5 1 3 Cannons 8 | . 2 2 4 Classes Destroyed 8 | 3 3 1 1 Worker 2 | 2 . . . Builder 3 | . 2 1 . Tunneler 4 | 4 . . . Recycler 3 | 1 1 1 . Watcher 1 | . 1 . . Swarmer 6 | . . 3 3 Grunt 9 | . 7 . 2 Subdweller 2 | . . . 2 Best Kill Streak 5 | 5 3 3 5 Combat Bots Only 5 | . 2 3 5 Max Kills in Single Turn 2 | 1 1 1 2 Gunslinging 1 | . . . 1 Exploded . | . . . . Melee . | . . . . Uniques/NPCs Destroyed . | . . . . Combat | -11 -10 -10 -10 -------- Run | Yrd Mat Min Sub Hostile Shots Fired 138 | . 50 9 79 Missed 47 | . 16 1 30 Hits 91 | . 34 8 49 Projectile 91 | . 34 8 49 Critical Strikes 2 | . 2 . . Damage Taken 1199 | . 411 60 728 Core 255 | . 110 28 117 Absorbed by Shields . | . . . . Core Remaining (%) 100 | 100 . . . Volleys Fired 108 | 13 60 12 23 Largest 2 | 2 2 2 2 Hottest 100 | 90 100 100 80 Shots Fired 191 | 26 98 24 43 Gun 123 | 26 56 12 29 Cannon 68 | . 42 12 14 Launcher . | . . . . Special . | . . . . Kinetic 29 | . . 6 23 Thermal 162 | 26 98 18 20 Explosive . | . . . . Electromagnetic . | . . . . Robot Hit Streak 15 | 6 11 7 15 Robot Miss Streak 5 | 2 5 2 2 Penetration Max . | . . . . Secondary Targets 1 | . . . 1 Max Gunslinging Chain 1 | . . . 1 Shots Hit Robots 119 | 17 58 16 28 Core Hits 51 | 8 21 8 14 Critical Kills . | . . . . Critical Parts Destroyed . | . . . . Critical Strikes . | . . . . Melee Attacks . | . . . . Impact . | . . . . Slashing . | . . . . Piercing . | . . . . Sneak Attacks . | . . . . Combat Hostiles . | . . . . Follow-up Attacks . | . . . . Damage Inflicted 1589 | 192 793 226 378 Guns 834 | 192 372 67 203 Cannons 755 | . 421 159 175 Explosions . | . . . . Melee . | . . . . Ramming . | . . . . Kinetic 226 | . . 44 182 Thermal 1363 | 192 793 182 196 Explosive . | . . . . Electromagnetic . | . . . . Impact . | . . . . Slashing . | . . . . Piercing . | . . . . Highest Corruption . | . . . . Average Corruption . | . . . . Corruption Purged . | . . . . Corruption Blocked . | . . . . Overload Shots . | . . . . Overflow Damage . | . . . . Projectiles . | . . . . Explosions . | . . . . Melee . | . . . . Knockbacks . | . . . . Impact . | . . . . Kinetic . | . . . . Secondary . | . . . . Self-Inflicted Damage . | . . . . Shots . | . . . . Rammed . | . . . . Targets Rammed . | . . . . Kicked . | . . . . Crushed . | . . . . Highest Temperature 231 | 120 231 96 27 Average Temperature 70 | 44 89 40 10 Received Heat Transfer 396 | . 264 . 132 Siege Activations . | . . . . Martial Activations . | . . . . Shielding Activations . | . . . . Robots Disrupted . | . . . . Combat Hostiles . | . . . . Robots Corrupted . | . . . . Combat Hostiles . | . . . . Parts Fried . | . . . . Impact Corruptions . | . . . . Robots Melted . | . . . . Combat Hostiles . | . . . . Parts Melted 4 | 2 1 . 1 Heat Transferred 3049 | 508 1738 383 420 Parts Sabotaged . | . . . . Parts Stolen . | . . . . Parts Stripped . | . . . . Power Chain Reactions . | . . . . Alert | -11 -10 -10 -10 ------- Run | Yrd Mat Min Sub Maximum Alert Level . | . . . . Low Security (%) 100 | 100 100 100 . Level 1 . | . . . . Level 2 . | . . . . Level 3 . | . . . . Level 4 . | . . . . Level 5 . | . . . . High Security . | . . . . Max Security . | . . . . Peak Influence 60 | 20 60 60 . Initial . | . . . . Average 9 | 3 15 5 . Influence Increases 459 | 35 224 80 120 Destroy 0b10 Robot/C 300 | . 140 60 100 Destroy 0b10 Robot/NC 65 | 35 20 10 . Destroy Leader 72 | . 42 10 20 Successful Hack 21 | . 21 . . Destroy Structure 1 | . 1 . . Influence Decreases 459 | 35 224 80 120 Time Decay 439 | 35 214 80 110 Lost Part 20 | . 10 . 10 Squads Dispatched 2 | . 2 . . Investigation 1 | . 1 . . Extermination . | . . . . Reinforcement 1 | . 1 . . Assault . | . . . . Garrison . | . . . . Intercept . | . . . . Searches Triggered . | . . . . Construction Impeded . | . . . . Haulers Reinforced . | . . . . Active Scanning Responses . | . . . . Cargo Convoy Interrupts . | . . . . Stealth | -11 -10 -10 -10 --------- Run | Yrd Mat Min Sub Distress Signals . | . . . . Communications Jammed . | . . . . Distress Signals . | . . . . Times Spotted 32 | . 12 3 17 Peak Tracking Total 7 | . 4 3 7 Tactical Retreats 1 | . . . 1 Traps | -11 -10 -10 -10 ------- Run | Yrd Mat Min Sub Traps Triggered 1 | . 1 . . Indirectly . | . . . . Trap Hack Attempts . | . . . . Triggered . | . . . . Disarmed . | . . . . Reprogrammed . | . . . . Reused . | . . . . Traps Extracted . | . . . . Installed . | . . . . Triggered . | . . . . Machines | -11 -10 -10 -10 ---------- Run | Yrd Mat Min Sub Machines Disabled . | . . . . Max in Single Turn . | . . . . Machines Repaired . | . . . . Machines Dismantled . | . . . . Machines Sabotaged . | . . . . Overloaded Fab Kills . | . . . . Hacking | -11 -10 -10 -10 --------- Run | Yrd Mat Min Sub Machines Accessed 6 | . 5 1 . Terminals 4 | . 4 . . Fabricators . | . . . . Repair Stations . | . . . . Recycling Units 1 | . 1 . . Scanalyzers . | . . . . Garrison Access . | . . . . Total Hacks 15 | . 14 1 . Successful 7 | . 6 1 . Failed 8 | . 8 . . Catastrophic 1 | . 1 . . Database Lockouts . | . . . . Manual 6 | . 6 . . Terminals 10 | . 10 . . Fabricators . | . . . . Repair Stations . | . . . . Recycling Units 4 | . 4 . . Scanalyzers . | . . . . Garrison Access . | . . . . Terminal Hacks 3 | . 2 1 . Open Door 1 | . . 1 . Terminal Index 1 | . 1 . . Locate Traps 1 | . 1 . . Fabricator Hacks . | . . . . Repair Station Hacks . | . . . . Recycling Unit Hacks 1 | . 1 . . Retrieve Components 1 | . 1 . . Scanalyzer . | . . . . Garrison Access Hacks . | . . . . Unauthorized Hacks 3 | . 3 . . Terminals 3 | . 3 . . Botnet 2 | . 2 . . Disrupt 1 | . 1 . . Fabricators . | . . . . Repair Stations . | . . . . Recycling Units . | . . . . Scanalyzers . | . . . . Garrison Access . | . . . . Data Cores Recovered . | . . . . Used . | . . . . Hacking Detections 5 | . 5 . . Full Trace Events . | . . . . Feedback Events . | . . . . Feedback Blocked . | . . . . Robot Schematics Acquired . | . . . . Robots Built . | . . . . Authchips . | . . . . Time . | . . . . Total Robot Build Rating . | . . . . Part Schematics Acquired . | . . . . Parts Built . | . . . . Authchips . | . . . . Time . | . . . . Total Part Build Rating . | . . . . Parts Repaired . | . . . . Time . | . . . . Parts Recycled . | . . . . Recycled Matter . | . . . . Retrieved Matter . | . . . . Retrieved Components 1 | . 1 . . Parts Scanalyzed . | . . . . Part Schematics Acquired . | . . . . Parts Damaged . | . . . . Bothacking | -11 -10 -10 -10 ------------ Run | Yrd Mat Min Sub Used RIF Installer . | . . . . Robots Hacked . | . . . . Non-combat . | . . . . Combat . | . . . . Robot Hacks Applied . | . . . . Relay Couplers Released . | . . . . Fabnet Peak Effective % . | . . . . Robots Rewired . | . . . . Allies Hacked . | . . . . Hacks Repelled . | . . . . Allies | -11 -10 -10 -10 -------- Run | Yrd Mat Min Sub Total Allies . | . . . . Largest Group . | . . . . Highest-Rated Group . | . . . . Highest-Rated Ally . | . . . . Total Orders . | . . . . Ally Attacks . | . . . . Total Damage . | . . . . Kills . | . . . . Allies Corrupted . | . . . . Allies Melted . | . . . . Intel | -11 -10 -10 -10 ------- Run | Yrd Mat Min Sub Active Infowar (turns) 1824 | 24 831 950 19 Structural 1279 | . 310 950 19 Seismic 545 | 24 521 . . Robot Analysis Total . | . . . . Derelict Logs Recovered 1 | . . 1 . Drone Launches . | . . . . Drone Recoveries . | . . . . Exploration | -11 -10 -10 -10 ------------- Run | Yrd Mat Min Sub Turns Passed 2177 | 127 832 950 268 Spaces Moved 1261 | 82 464 582 133 Core 6 | 6 . . . Treads 6 | 6 . . . Legs . | . . . . Wheels 1249 | 70 464 582 133 Hover . | . . . . Flight . | . . . . Fastest Speed 50 | 50 80 140 112 Average Speed 131 | 83 129 140 129 Slowest Speed 170 | 160 140 140 170 Overloaded Moves . | . . . . Propulsion Burnouts . | . . . . Robots Hopped . | . . . . Potential Cave-ins . | . . . . Cave-ins Triggered . | . . . . Exploration Rate (%) 42 | 3 57 101 8 Regions Visited 3 Branch Regions 2 Pre-discovered Areas 2 | . . 1 1 Known Exits Taken . | . . . . Unknown Exits Taken 3 | 1 1 1 . Scrap Searched 1 | . . 1 . Spaces Dug . | . . . . Terrain Destroyed . | . . . . Melee . | . . . . Projectile . | . . . . AOE . | . . . . Terrain Rammed . | . . . . Walls Destroyed . | . . . . Machines Disabled . | . . . . Actions | -11 -10 -10 -10 --------- Run | Yrd Mat Min Sub Total 1609 | 112 608 698 191 Wait 136 | 1 31 93 11 Move 1258 | 81 463 581 133 Hop . | . . . . Pick Up 43 | 10 25 4 4 Fast Attach 11 | 5 2 2 2 Attach 3 | 1 . . 2 Detach . | . . . . Swap 15 | . 8 . 7 Drop 35 | 1 19 6 9 Fire 108 | 13 60 12 23 Melee . | . . . . Ram . | . . . . Kick . | . . . . Crush . | . . . . Escape Stasis . | . . . . Rewire . | . . . . Trap . | . . . . Miscellaneous . | . . . . Route ------- -11/Scrapyard -10/Materials (discovered 4 exits: [*Mat x2] / *Min x2) -10/Mines (discovered 3 exits: [*Mat x2] / [*Sub]) -10/Subcaves History --------- Turn | Location | Event 25 | -11/Scrapyard | Discovered new exit (range 16) 128 | -11/Scrapyard | Entered Materials 266 | -10/Materials | Discovered new exit (range 15) 341 | -10/Materials | Discovered new exit (range 8) 523 | -10/Materials | Discovered new exit (range 16) 765 | -10/Materials | Build established: Mutant 911 | -10/Materials | Discovered new exit (range 13) 960 | -10/Materials | Entered Mines 998 | -10/Mines | Core integrity fell below 50% 1019 | -10/Mines | Learned location of Recycling (-9) 1019 | -10/Mines | Discovered new exit (range 13) 1359 | -10/Mines | Discovered new exit (range 9) 1364 | -10/Mines | Build established: Scavenger-Mutant 1703 | -10/Mines | Met a Derelict who couldn't figure out how to use a Trap Extractor 1894 | -10/Mines | Discovered new exit (range 10) 1910 | -10/Mines | Entered Subcaves 1911 | -10/Subcaves | Approached by a straggling Scientist 1916 | -10/Subcaves | Ambushed by Subdwellers from Twisted Machinery 1933 | -10/Subcaves | Learned location of Zion (-7) 1933 | -10/Subcaves | Met a Zionite searching for "candidates" 2028 | -10/Subcaves | Core integrity fell below 20% 2096 | -10/Subcaves | Ambushed by swarm of Subdwellers 2178 | -10/Subcaves | Destroyed by FB-8V9(R) with Subdweller Machine Gun Last Messages --------------- 02062_ Aluminum Leg fries itself beyond repair. A mess of Twisted Machinery falls from the cavern ceiling. 0V-GSD(R) comes tumbling into view. 02098_ FB-8V9(R) emerges from the Twisted Machinery. 02099_ 76-NPB(R) emerges from the Twisted Machinery. 02099_ RQ-7QF(R) emerges from the Twisted Machinery. 02100_ D6-I0G(R) emerges from the Twisted Machinery. 02101_ Q0-H6B(R) emerges from the Twisted Machinery. 02130_ Subatomizers dissect the Lgt. Ion Engine. 02142_ Acquired 11 matter. 02145_ Subatomizers dissect the Lgt. Ion Engine. 02160_ Dropped Wheel. 02160_ Acquired Wheel. 02161_ Acquired 21 matter. Map ----- +----------------------------------------------------+ | | | ?????????????????????????????????????????????????? | | ?????????????????????????????????????????????????? | | ?????????????????????????????????????????????????? | | ?????????????????????????????????????????????????? | | ?????????????????????????????????????????????????? | | ?????????????????????????????????????????????????? | | ?????????????????????????????????????????????????? | | ?????????????????????????????????????????????????? | | ?????????????????????????????????????????????????? | | ?????????????????????????????????????????????????? | | ?????????????????????????????????????????????????? | | ?????????????????????????????????????????????????? | | #????????????????????????????????????????????????? | | ????????????????????????????????????????????????? | | #???????????????????????????????????????????????? | | #??????????????????????????????????????????????? | | "##??????????????????????????###????????????????? | | "????????????????####?????### ###??????????????? | | ???????????????# #????## # ##?????????????? | | # ????????????### #????# #?????????????? | | #########??## #?????# #?????????????? | | ## # #### ##????# #??????????????? | | ###### ### ##?????????????? | | ## #### "#?????????????? | | ## # ## # # @ ### ##????????????? | | ""############# R ##???????????? | | ""#?????????# #### RR* #???????????? | | ""#?????????## ##??# =R! #???????????? | | ""#????????### ## ##???# R ##???????????? | | ##???????### ### ##???# ## ###????????????? | | "?????????# #######????####### #?????????????? | | "?????????## "####??????# ## #?????????????? | | ??????????### "" #??????# ##?????????????? | | ???????????##" ##?????# #??????????????? | | ???????????#"" ####### #??????????????? | | ???????????### ######### ##??????????????? | | ????????????## &# = = #### ##???????????????? | | ???????????### %=% *%!/ ## # ## ##??????????? | | ??????# "### =% !* % ###?????????? | | ??????? """ # !#### % ## ##?????????? | | ??????? """ ####### ## ### ?###?????????? | | ???????"""" ###### ### ###??????????????? | | ????????## ###????# ???????????????? | | ?????????# ???????# ??????????????? | | ????????# ???????# ### # ##?????????????? | | ????????#### #???????##??#########??????????????? | | ???????????###??????????????######???????????????? | | ?????????????????????????????????????????????????? | | ?????????????????????????????????????????????????? | +----------------------------------------------------+ Best States ------------- Heat Dissipation 25 Energy Generation 19 Energy Capacity 315 Matter Stores 300 Matter Capacity 300 Sight Range 16 Terrain Scan Density 10 Armor Coverage 225 Evasion (%) 44 Recoil Reduction 2 Item Schematics ----------------- None Robot Schematics ------------------ None Fabricated ------------ Nothing Repaired ---------- Nothing Alien Tech Used ----------------- None Achievements -------------- None Challenges ------------ None Game ------ Seed XenonBurstLink Manual? 0 Play Time 00:16:00 Cumulative 174.0 hours Start 2025.05.17 @ 15:44:13 End 2025.05.17 @ 15:57:13 Sessions 1 Manual Loads 0 Difficulty Rogue Special Mode None Game No. 197 Rogue 197 Adventurer 0 Explorer 0 Win Type - Total 1 Types 1/0/0/0/0/0/0/0/0/0 Lore% 69 Gallery% 69 Achievement% 61 Wizard Run 0 Options --------- Layout 1 ASCII 0 Keyboard 0 Movement Numpad Keybinds 0 Fullscreen 1 Font 24/Smallcaps Map View 50x35 Zoom Use 0% Tactical HUD 1 Map Filters NONE Filters NONE Steam 1 RUN: e7b2ac33-a1d9-448a-bb64-4bfe609d6cd2